fUSD/lending_fUSD_20250206
["ID","MTS","AMOUNT","RATE_DAILY","PERIOD"]
[351942270,1738854648757,-500.0,0.00019178,2]
[351942271,1738854648767,-500.0,0.00019178,2]
[351942274,1738854648778,-500.0,0.00019178,2]
[351942276,1738854648789,-500.0,0.00019178,2]
[351942278,1738854648799,-500.0,0.00019178,2]
[351942280,1738854648810,-500.0,0.00019178,2]
[351942282,1738854648821,-500.0,0.00019178,2]
[351942284,1738854648833,-1044.61,0.00019178,2]
[351942286,1738854648844,-500.0,0.00019178,2]
[351942288,1738854648855,-500.0,0.00019178,2]
[351942290,1738854648865,-500.0,0.00019178,2]
[351942292,1738854648876,-500.0,0.00019178,2]
[351942294,1738854648886,-1159.36,0.00019178,2]
[351942296,1738854648896,-500.0,0.00019178,2]
[351942297,1738854648908,-596.08,0.00019178,2]
[351942298,1738854648918,-500.0,0.00019178,2]
[351942299,1738854648928,-500.0,0.00019178,2]
[351942300,1738854648938,-500.0,0.00019178,2]
[351942301,1738854648949,-500.0,0.00019178,2]
[351942302,1738854648959,-1301.17,0.00019178,2]
[351942303,1738854648969,-500.0,0.00019178,2]
[351942304,1738854648979,-500.0,0.00019178,2]
[351942305,1738854648989,-500.0,0.00019178,2]
[351942306,1738854648999,-500.0,0.00019178,2]
[351942307,1738854649010,-500.0,0.00019178,2]
[351942308,1738854649020,-500.0,0.00019178,2]
[351942309,1738854649030,-500.0,0.00019178,2]
[351942311,1738854649040,-500.0,0.00019178,2]
[351942313,1738854649050,-500.0,0.00019178,2]
[351942315,1738854649060,-500.0,0.00019178,2]
[351942317,1738854649070,-500.0,0.00019178,2]
[351942319,1738854649079,-500.0,0.00019178,2]
[351942321,1738854649093,-500.0,0.00019178,2]
[351942323,1738854649104,-500.0,0.00019178,2]
[351942325,1738854649114,-500.0,0.00019178,2]
[351942327,1738854649123,-500.0,0.00019178,2]
[351942329,1738854649135,-500.0,0.00019178,2]
[351942331,1738854649145,-991.2,0.00019178,2]
[351942333,1738854649156,-474.14658583,0.00019178,2]
[351942335,1738854649166,-500.0,0.00019178,2]
[351942337,1738854649178,-500.0,0.00019178,2]
[351942339,1738854649189,-500.0,0.00019178,2]
[351942341,1738854649198,-500.0,0.00019178,2]
[351942343,1738854649207,-500.0,0.00019178,2]
[351942345,1738854649217,-500.0,0.00019178,2]
[351942347,1738854649226,-500.0,0.00019178,2]
[351942349,1738854649236,-500.0,0.00019178,2]
[351942351,1738854649245,-582.84396115,0.00019178,2]
[351942352,1738854649253,-500.0,0.00019178,2]
[351942354,1738854649263,-878.13,0.00019178,2]
[351942356,1738854649272,-500.0,0.00019178,2]
[351942358,1738854649282,-500.0,0.00019178,2]
[351942360,1738854649291,-500.0,0.00019178,2]
[351942362,1738854649301,-500.0,0.00019178,2]
[351942364,1738854649311,-500.0,0.00019178,2]
[351942366,1738854649321,-500.0,0.00019178,2]
[351942368,1738854649330,-500.0,0.00019178,2]
[351942370,1738854649339,-500.0,0.00019178,2]
[351942372,1738854649349,-500.0,0.00019178,2]
[351942374,1738854649358,-500.0,0.00019178,2]
[351942376,1738854649368,-500.0,0.00019178,2]
[351942378,1738854649377,-500.0,0.00019178,2]
[351942380,1738854649387,-500.0,0.00019178,2]
[351942382,1738854649396,-500.0,0.00019178,2]
[351942384,1738854649407,-500.0,0.00019178,2]
[351942386,1738854649416,-500.0,0.00019178,2]
[351942388,1738854649425,-500.0,0.00019178,2]
[351942389,1738854649434,-500.0,0.00019178,2]
[351942391,1738854649443,-500.0,0.00019178,2]
[351942393,1738854649452,-1031.4,0.00019178,2]
[351942395,1738854649461,-500.0,0.00019178,2]
[351942397,1738854649471,-800.56,0.00019178,2]
[351942399,1738854649481,-500.0,0.00019178,2]
[351942401,1738854649490,-500.0,0.00019178,2]
[351942403,1738854649500,-1043.8,0.00019178,2]
[351942405,1738854649509,-644.08,0.00019178,2]
[351942407,1738854649519,-1038.37,0.00019178,2]
[351942409,1738854649529,-500.0,0.00019178,2]
[351942411,1738854649539,-500.0,0.00019178,2]
[351942413,1738854649548,-500.0,0.00019178,2]
[351942415,1738854649558,-500.0,0.00019178,2]
[351942417,1738854649569,-500.0,0.00019178,2]
[351942419,1738854649580,-500.0,0.00019178,2]
[351942421,1738854649590,-500.0,0.00019178,2]
[351942423,1738854649599,-745.22,0.00019178,2]
[351942425,1738854649609,-500.0,0.00019178,2]
[351942427,1738854649618,-500.0,0.00019178,2]
[351942429,1738854649628,-500.0,0.00019178,2]
[351942431,1738854649638,-500.0,0.00019178,2]
[351942433,1738854649647,-500.0,0.00019178,2]
[351942434,1738854649658,-888.32,0.00019178,2]
[351942436,1738854649667,-500.0,0.00019178,2]
[351942438,1738854649678,-500.0,0.00019178,2]
[351942440,1738854649688,-500.0,0.00019178,2]
[351942442,1738854649697,-500.0,0.00019178,2]
[351942444,1738854649707,-500.0,0.00019178,2]
[351942446,1738854649716,-1094.26,0.00019178,2]
[351942448,1738854649726,-500.0,0.00019178,2]
[351942450,1738854649736,-500.0,0.00019178,2]
[351942452,1738854649745,-504.43781728,0.00019178,2]
[351942454,1738854649755,-500.0,0.00019178,2]
[351942456,1738854649765,-1206.25,0.00019178,2]
[351942458,1738854649775,-500.0,0.00019178,2]
[351942460,1738854649785,-562.29,0.00019178,2]
[351942462,1738854649794,-500.0,0.00019178,2]
[351942464,1738854649805,-500.0,0.00019178,2]
[351942466,1738854649813,-500.0,0.00019178,2]
[351942468,1738854649823,-500.0,0.00019178,2]
[351942470,1738854649833,-500.0,0.00019178,2]
[351942471,1738854649843,-112.82912563,0.00019178,2]
[351942511,1738854650219,-387.17087437,0.00019178,2]
[351942513,1738854650229,-500.0,0.00019178,2]
[351942515,1738854650238,-500.0,0.00019178,2]
[351942517,1738854650248,-500.0,0.00019178,2]
[351942519,1738854650258,-500.0,0.00019178,2]
[351942521,1738854650267,-500.0,0.00019178,2]
[351942523,1738854650277,-500.0,0.00019178,2]
[351942525,1738854650287,-500.0,0.00019178,2]
[351942527,1738854650296,-414.41512563,0.00019178,2]
[351942530,1738854650316,-85.58487437,0.00019178,2]
[351942532,1738854650325,-500.0,0.00019178,2]
[351942534,1738854650335,-500.0,0.00019178,2]
[351942536,1738854650344,-999.0,0.00019178,2]
[351942538,1738854650354,-999.0,0.00019178,2]
[351942540,1738854650364,-500.0,0.00019178,2]
[351942543,1738854650374,-1045.22,0.00019178,2]
[351942545,1738854650383,-357.21305578,0.00019178,2]
[351942547,1738854650395,-142.78694422,0.00019178,2]
[351942549,1738854650408,-999.0,0.00019178,2]
[351942551,1738854650418,-500.0,0.00019178,2]
[351942553,1738854650428,-999.0,0.00019178,2]
[351942555,1738854650438,-999.0,0.00019178,2]
[351942557,1738854650448,-999.0,0.00019178,2]
[351942559,1738854650457,-406.40743534,0.00019178,2]
[351942561,1738854650467,-999.0,0.00019178,2]
[351942563,1738854650477,-999.0,0.00019178,2]
[351942566,1738854650487,-500.0,0.00019178,2]
[351942568,1738854650496,-999.0,0.00019178,2]
[351942570,1738854650506,-500.0,0.00019178,2]
[351942572,1738854650516,-999.0,0.00019178,2]
[351942574,1738854650525,-999.0,0.00019178,2]
[351942576,1738854650535,-500.0,0.00019178,2]
[351942578,1738854650544,-999.0,0.00019178,2]
[351942580,1738854650554,-999.0,0.00019178,2]
[351942582,1738854650564,-500.0,0.00019178,2]
[351942584,1738854650574,-500.0,0.00019178,2]
[351942586,1738854650584,-999.0,0.00019178,2]
[351942588,1738854650594,-828.27049318,0.00019178,2]
[351942590,1738854650604,-500.0,0.00019178,2]
[351942592,1738854650613,-500.0,0.00019178,2]
[351942594,1738854650623,-933.97,0.00019178,2]
[351942596,1738854650633,-500.0,0.00019178,2]
[351942598,1738854650643,-500.0,0.00019178,2]
[351942600,1738854650654,-500.0,0.00019178,2]
[351942602,1738854650664,-500.0,0.00019178,2]
[351942604,1738854650673,-912.43,0.00019178,2]
[351942606,1738854650682,-500.0,0.00019178,2]
[351942608,1738854650693,-500.0,0.00019178,2]
[351942610,1738854650703,-500.0,0.00019178,2]
[351942612,1738854650713,-500.0,0.00019178,2]
[351942614,1738854650722,-171.33546447,0.00019178,2]
[351942616,1738854650732,-500.0,0.00019178,2]
[351942618,1738854650742,-500.0,0.00019178,2]
[351942620,1738854650752,-500.0,0.00019178,2]
[351942622,1738854650762,-1651.14,0.00019178,2]
[351942624,1738854650771,-500.0,0.00019178,2]
[351942626,1738854650781,-500.0,0.00019178,2]
[351942628,1738854650791,-552.98,0.00019178,2]
[351942630,1738854650801,-500.0,0.00019178,2]
[351942632,1738854650810,-795.4,0.00019178,2]
[351942634,1738854650820,-1016.62,0.00019178,2]
[351942636,1738854650830,-500.0,0.00019178,2]
[351942638,1738854650839,-500.0,0.00019178,2]
[351942640,1738854650849,-500.0,0.00019178,2]
[351942642,1738854650858,-500.0,0.00019178,2]
[351942644,1738854650868,-500.0,0.00019178,2]
[351942646,1738854650878,-1026.88,0.00019178,2]
[351942648,1738854650887,-500.0,0.00019178,2]
[351942650,1738854650897,-1161.99,0.00019178,2]
[351942652,1738854650907,-500.0,0.00019178,2]
[351942654,1738854650918,-590.75,0.00019178,2]
[351942656,1738854650928,-500.0,0.00019178,2]
[351942659,1738854650938,-555.47,0.00019178,2]
[351942661,1738854650948,-703.38,0.00019178,2]
[351942663,1738854650958,-529.32819938,0.00019178,2]
[351942665,1738854650967,-500.0,0.00019178,2]
[351942667,1738854650977,-500.0,0.00019178,2]
[351942669,1738854650986,-500.0,0.00019178,2]
[351942671,1738854650996,-500.0,0.00019178,2]
[351942673,1738854651006,-500.0,0.00019178,2]
[351942675,1738854651016,-500.0,0.00019178,2]
[351942677,1738854651026,-322.01781372,0.00019178,2]
[351942679,1738854651035,-397.98519691,0.00019178,2]
[351942681,1738854651045,-500.0,0.00019178,2]
[351942683,1738854651054,-519.79444173,0.00019178,2]
[351942685,1738854651064,-500.0,0.00019178,2]
[351942687,1738854651073,-500.0,0.00019178,2]
[351942689,1738854651083,-928.21,0.00019178,2]
[351942691,1738854651094,-500.0,0.00019178,2]
[351942693,1738854651103,-500.0,0.00019178,2]
[351942695,1738854651113,-500.0,0.00019178,2]
[351942697,1738854651122,-500.0,0.00019178,2]
[351942699,1738854651133,-859.26,0.00019178,2]
[351942701,1738854651143,-500.0,0.00019178,2]
[351942703,1738854651154,-500.0,0.00019178,2]
[351942705,1738854651164,-500.0,0.00019178,2]
[351942707,1738854651175,-1300.92,0.00019178,2]
[351942709,1738854651184,-500.0,0.00019178,2]
[351942711,1738854651194,-154.590289,0.00019178,2]
[351942713,1738854651204,-500.0,0.00019178,2]
[351942715,1738854651213,-898.35,0.00019178,2]
[351942717,1738854651223,-1172.92,0.00019178,2]
[351942720,1738854651233,-500.0,0.00019178,2]
[351942722,1738854651243,-500.0,0.00019178,2]
[351942724,1738854651252,-500.0,0.00019178,2]
[351942726,1738854651262,-1405.29,0.00019178,2]
[351942728,1738854651272,-1692.71,0.00019178,2]
[351942730,1738854651282,-500.0,0.00019178,2]
[351942732,1738854651291,-500.0,0.00019178,2]
[351942734,1738854651301,-1018.77,0.00019178,2]
[351942736,1738854651311,-1132.77,0.00019178,2]
[351942738,1738854651321,-500.0,0.00019178,2]
[351942740,1738854651330,-500.0,0.00019178,2]
[351942742,1738854651339,-768.02,0.00019178,2]
[351942744,1738854651348,-500.0,0.00019178,2]
[351942746,1738854651358,-1549.35,0.00019178,2]
[351942748,1738854651367,-500.0,0.00019178,2]
[351942750,1738854651377,-500.0,0.00019178,2]
[351942752,1738854651387,-500.0,0.00019178,2]
[351942754,1738854651397,-882.7,0.00019178,2]
[351942757,1738854651412,-1198.9,0.00019178,2]
[351942759,1738854651422,-1308.3,0.00019178,2]
[351942761,1738854651433,-500.0,0.00019178,2]
[351942763,1738854651443,-500.0,0.00019178,2]
[351942765,1738854651452,-1125.86,0.00019178,2]
[351942767,1738854651462,-500.0,0.00019178,2]
[351942769,1738854651472,-164.349194,0.00019178,2]
[351942771,1738854651482,-500.0,0.00019178,2]
[351942773,1738854651492,-1200.0,0.00019178,5]
[351942775,1738854651502,-578.97,0.00019178,2]
[351942777,1738854651512,-1220.22,0.00019178,2]
[351942779,1738854651522,-790.15,0.00019178,2]
[351942781,1738854651532,-500.0,0.00019178,2]
[351942783,1738854651541,-359.675208,0.00019178,2]
[351942785,1738854651552,-408.73422175,0.00019178,2]
[351942787,1738854651561,-500.0,0.00019178,2]
[351942789,1738854651571,-500.0,0.00019178,2]
[351942791,1738854651582,-500.0,0.00019178,2]
[351942793,1738854651592,-500.0,0.00019178,2]
[351942795,1738854651603,-1232.73,0.00019178,2]
[351942797,1738854651624,-500.0,0.00019178,2]
[351942799,1738854651640,-500.0,0.00019178,2]
[351942801,1738854651656,-500.0,0.00019178,2]
[351942803,1738854651666,-500.0,0.00019178,2]
[351942805,1738854651676,-1391.58,0.00019178,2]
[351942807,1738854651686,-500.0,0.00019178,2]
[351942809,1738854651696,-580.35,0.00019178,2]
[351942812,1738854651708,-500.0,0.00019178,2]
[351942814,1738854651718,-500.0,0.00019178,2]
[351942816,1738854651727,-1623.89,0.00019178,2]
[351942818,1738854651737,-500.0,0.00019178,2]
[351942820,1738854651747,-500.0,0.00019178,2]
[351942822,1738854651757,-500.0,0.00019178,2]
[351942824,1738854651767,-606.72,0.00019178,2]
[351942826,1738854651777,-500.0,0.00019178,2]
[351942828,1738854651787,-500.0,0.00019178,2]
[351942830,1738854651797,-500.0,0.00019178,2]
[351942832,1738854651806,-500.0,0.00019178,2]
[351942834,1738854651816,-500.0,0.00019178,2]
[351942836,1738854651826,-629.45,0.00019178,2]
[351942838,1738854651836,-500.0,0.00019178,2]
[351942840,1738854651846,-681.62,0.00019178,2]
[351942842,1738854651856,-844.37,0.00019178,2]
[351942844,1738854651866,-602.38472574,0.00019178,2]
[351942846,1738854651876,-500.0,0.00019178,2]
[351942848,1738854651886,-500.0,0.00019178,2]
[351942850,1738854651895,-500.0,0.00019178,2]
[351942852,1738854651910,-510.53057765,0.00019178,2]
[351942854,1738854651919,-500.0,0.00019178,2]
[351942857,1738854651929,-509.22,0.00019178,2]
[351942859,1738854651939,-500.0,0.00019178,2]
[351942861,1738854651949,-1315.57,0.00019178,2]
[351942863,1738854651959,-612.66,0.00019178,2]
[351942865,1738854651969,-960.04,0.00019178,2]
[351942866,1738854651979,-1504.82,0.00019178,2]
[351942867,1738854651988,-500.0,0.00019178,2]
[351942868,1738854651997,-512.0851516,0.00019178,2]
[351942869,1738854652007,-736.27,0.00019178,2]
[351942870,1738854652016,-1614.28,0.00019178,2]
[351942871,1738854652025,-500.0,0.00019178,2]
[351942872,1738854652035,-500.0,0.00019178,2]
[351942873,1738854652044,-500.0,0.00019178,2]
[351942874,1738854652053,-997.4,0.00019178,2]
[351942875,1738854652063,-500.0,0.00019178,2]
[351942876,1738854652072,-962.37,0.00019178,2]
[351942877,1738854652081,-500.0,0.00019178,2]
[351942878,1738854652091,-500.0,0.00019178,2]
[351942880,1738854652103,-1018.0,0.00019178,2]
[351942905,1738854652332,-500.0,0.00019178,2]
[351942907,1738854652343,-500.0,0.00019178,2]
[351942909,1738854652353,-1303.78,0.00019178,2]
[351942911,1738854652363,-500.0,0.00019178,2]
[351942913,1738854652372,-987.39,0.00019178,2]
[351942915,1738854652382,-1504.92,0.00019178,2]
[351942917,1738854652392,-500.0,0.00019178,2]
[351942919,1738854652405,-500.0,0.00019178,2]
[351942921,1738854652416,-500.0,0.00019178,2]
[351942923,1738854652425,-1572.11,0.00019178,2]
[351942925,1738854652435,-500.0,0.00019178,2]
[351942927,1738854652444,-635.36,0.00019178,2]
[351942929,1738854652454,-870.78,0.00019178,2]
[351942931,1738854652464,-500.0,0.00019178,2]
[351942933,1738854652473,-500.0,0.00019178,2]
[351942935,1738854652482,-1251.71,0.00019178,2]
[351942937,1738854652491,-500.0,0.00019178,2]
[351942939,1738854652500,-500.0,0.00019178,2]
[351942941,1738854652509,-253.85476185,0.00019178,2]
[351942943,1738854652519,-695.42,0.00019178,2]
[351942945,1738854652528,-500.0,0.00019178,2]
[351942947,1738854652537,-500.0,0.00019178,2]
[351942949,1738854652546,-652.16,0.00019178,2]
[351942950,1738854652556,-500.0,0.00019178,2]
[351942953,1738854652566,-1860.72,0.00019178,2]
[351942954,1738854652575,-1128.08,0.00019178,2]
[351942956,1738854652585,-500.0,0.00019178,2]
[351942959,1738854652595,-639.36,0.00019178,2]
[351942960,1738854652604,-500.0,0.00019178,2]
[351942962,1738854652614,-1128.08,0.00019178,2]
[351942964,1738854652623,-1128.08,0.00019178,2]
[351942966,1738854652633,-1410.03,0.00019178,2]
[351942968,1738854652642,-500.0,0.00019178,2]
[351942970,1738854652655,-500.0,0.00019178,2]
[351942972,1738854652665,-500.0,0.00019178,2]
[351942975,1738854652675,-500.0,0.00019178,2]
[351942977,1738854652685,-500.0,0.00019178,2]
[351942979,1738854652694,-982.27,0.00019178,2]
[351942980,1738854652703,-1068.96,0.00019178,2]
[351942982,1738854652713,-500.41268267,0.00019178,2]
[351942984,1738854652723,-500.0,0.00019178,2]
[351942986,1738854652733,-500.0,0.00019178,2]
[351942989,1738854652743,-1188.44,0.00019178,2]
[351942991,1738854652753,-500.0,0.00019178,2]
[351942993,1738854652763,-1347.23,0.00019178,2]
[351942995,1738854652772,-1326.08,0.00019178,2]
[351942997,1738854652783,-571.99,0.00019178,2]
[351942999,1738854652793,-500.0,0.00019178,2]
[351943001,1738854652803,-1170.36,0.00019178,2]
[351943003,1738854652812,-270.37142533,0.00019178,2]
[351943005,1738854652822,-1071.49,0.00019178,2]
[351943007,1738854652831,-1509.49,0.00019178,2]
[351943009,1738854652841,-500.0,0.00019178,2]
[351943011,1738854652850,-1487.56,0.00019178,2]
[351943013,1738854652859,-500.0,0.00019178,2]
[351943015,1738854652869,-1371.89,0.00019178,2]
[351943017,1738854652878,-518.99768423,0.00019178,2]
[351943019,1738854652887,-1304.86,0.00019178,2]
[351943021,1738854652897,-524.25190407,0.00019178,2]
[351943023,1738854652908,-500.0,0.00019178,2]
[351943025,1738854652918,-500.0,0.00019178,2]
[351943027,1738854652928,-500.0,0.00019178,2]
[351943029,1738854652938,-500.0,0.00019178,2]
[351943031,1738854652948,-991.64,0.00019178,2]
[351943033,1738854652957,-500.0,0.00019178,2]
[351943035,1738854652967,-1491.04,0.00019178,2]
[351943037,1738854652977,-500.0,0.00019178,2]
[351943039,1738854652987,-500.0,0.00019178,2]
[351943041,1738854652996,-500.0,0.00019178,2]
[351943043,1738854653006,-150.44733823,0.00019178,2]
[351943045,1738854653015,-565.55183482,0.00019178,2]
[351943047,1738854653025,-1138.1,0.00019178,2]
[351943049,1738854653034,-2930.23,0.00019178,2]
[351943051,1738854653043,-500.0,0.00019178,2]
[351943053,1738854653052,-500.0,0.00019178,2]
[351943055,1738854653061,-500.0,0.00019178,2]
[351943057,1738854653071,-1318.46,0.00019178,2]
[351943059,1738854653080,-516.34654406,0.00019178,2]
[351943061,1738854653091,-856.27,0.00019178,2]
[351943063,1738854653104,-2474.68,0.00019178,2]
[351943065,1738854653113,-500.0,0.00019178,2]
[351943066,1738854653122,-1510.91,0.00019178,2]
[351943068,1738854653131,-1722.3,0.00019178,2]
[351943070,1738854653140,-516.47994371,0.00019178,2]
[351943072,1738854653151,-604.75,0.00019178,2]
[351943074,1738854653161,-500.0,0.00019178,2]
[351943076,1738854653170,-500.0,0.00019178,2]
[351943078,1738854653180,-543.44336609,0.00019178,2]
[351943080,1738854653190,-501.46554205,0.00019178,2]
[351943082,1738854653199,-2888.21,0.00019178,2]
[351943084,1738854653209,-1263.79,0.00019178,2]
[351943086,1738854653218,-874.73,0.00019178,2]
[351943088,1738854653227,-500.0,0.00019178,2]
[351943090,1738854653236,-500.0,0.00019178,2]
[351943092,1738854653246,-500.0,0.00019178,2]
[351943094,1738854653255,-500.0,0.00019178,2]
[351943096,1738854653264,-500.0,0.00019178,2]
[351943098,1738854653274,-500.0,0.00019178,2]
[351943100,1738854653284,-805.95,0.00019178,2]
[351943102,1738854653293,-500.0,0.00019178,2]
[351943104,1738854653303,-1462.81,0.00019178,2]
[351943106,1738854653312,-500.0,0.00019178,2]
[351943108,1738854653322,-1378.88,0.00019178,2]
[351943110,1738854653331,-501.73183285,0.00019178,2]
[351943112,1738854653341,-500.0,0.00019178,2]
[351943114,1738854653350,-500.0,0.00019178,2]
[351943116,1738854653359,-465.51650089,0.00019178,2]
[351943118,1738854653369,-1903.06,0.00019178,2]
[351943120,1738854653378,-1625.13,0.00019178,2]
[351943122,1738854653388,-1008.29,0.00019178,2]
[351943124,1738854653397,-5095.85,0.00019178,2]
[351943126,1738854653407,-500.0,0.00019178,2]
[351943128,1738854653417,-500.0,0.00019178,2]
[351943130,1738854653426,-500.0,0.00019178,2]
[351943132,1738854653437,-500.0,0.00019178,2]
[351943134,1738854653446,-1183.75,0.00019178,2]
[351943136,1738854653458,-500.0,0.00019178,2]
[351943138,1738854653469,-500.0,0.00019178,2]
[351943140,1738854653482,-2234.21,0.00019178,2]
[351943142,1738854653493,-531.17,0.00019178,2]
[351943144,1738854653503,-500.0,0.00019178,2]
[351943146,1738854653512,-793.21,0.00019178,2]
[351943148,1738854653525,-1698.59,0.00019178,2]
[351943150,1738854653538,-500.0,0.00019178,2]
[351943152,1738854653548,-500.0,0.00019178,2]
[351943154,1738854653558,-596.92,0.00019178,2]
[351943156,1738854653567,-1588.82,0.00019178,2]
[351943158,1738854653577,-500.0,0.00019178,2]
[351943160,1738854653586,-500.0,0.00019178,2]
[351943162,1738854653595,-500.0,0.00019178,2]
[351943164,1738854653605,-730.46,0.00019178,2]
[351943166,1738854653614,-500.0,0.00019178,2]
[351943168,1738854653623,-1684.39,0.00019178,2]
[351943169,1738854653633,-2291.39,0.00019178,2]
[351943171,1738854653643,-1587.32,0.00019178,2]
[351943174,1738854653655,-500.0,0.00019178,2]
[351943176,1738854653666,-863.77,0.00019178,2]
[351943178,1738854653676,-500.0,0.00019178,2]
[351943180,1738854653685,-500.0,0.00019178,2]
[351943182,1738854653695,-500.0,0.00019178,2]
[351943184,1738854653705,-505.45188928,0.00019178,2]
[351943186,1738854653714,-617.26,0.00019178,2]
[351943188,1738854653724,-718.52,0.00019178,2]
[351943190,1738854653734,-500.0,0.00019178,2]
[351943192,1738854653744,-500.0,0.00019178,2]
[351943194,1738854653754,-917.79,0.00019178,2]
[351943196,1738854653763,-1546.91,0.00019178,2]
[351943198,1738854653773,-500.0,0.00019178,2]
[351943200,1738854653783,-1950.94,0.00019178,2]
[351943202,1738854653793,-2139.44,0.00019178,2]
[351943204,1738854653802,-609.7,0.00019178,2]
[351943206,1738854653812,-500.0,0.00019178,2]
[351943208,1738854653821,-1389.1,0.00019178,2]
[351943210,1738854653831,-844.62,0.00019178,2]
[351943212,1738854653841,-1623.14,0.00019178,2]
[351943214,1738854653850,-510.44,0.00019178,2]
[351943216,1738854653859,-500.0,0.00019178,2]
[351943218,1738854653869,-500.0,0.00019178,2]
[351943220,1738854653877,-500.0,0.00019178,2]
[351943222,1738854653887,-500.0,0.00019178,2]
[351943224,1738854653896,-1516.5,0.00019178,2]
[351943226,1738854653907,-614.83,0.00019178,2]
[351943228,1738854653917,-1684.11,0.00019178,2]
[351943230,1738854653926,-500.0,0.00019178,2]
[351943232,1738854653936,-2118.97,0.00019178,2]
[351943234,1738854653949,-1140.18,0.00019178,2]
[351943236,1738854653961,-500.0,0.00019178,2]
[351943238,1738854653970,-1053.14,0.00019178,2]
[351943240,1738854653979,-500.0,0.00019178,2]
[351943242,1738854653989,-500.0,0.00019178,2]
[351943244,1738854653998,-1454.55,0.00019178,2]
[351943246,1738854654008,-500.0,0.00019178,2]
[351943248,1738854654017,-3185.81,0.00019178,2]
[351943250,1738854654027,-500.0,0.00019178,2]
[351943252,1738854654036,-500.0,0.00019178,2]
[351943254,1738854654045,-1168.88,0.00019178,2]
[351943256,1738854654054,-500.0,0.00019178,2]
[351943258,1738854654064,-500.0,0.00019178,2]
[351943260,1738854654073,-501.59665778,0.00019178,2]
[351943262,1738854654082,-500.0,0.00019178,2]
[351943264,1738854654095,-1603.28,0.00019178,2]
[351943266,1738854654105,-500.0,0.00019178,2]
[351943268,1738854654114,-500.0,0.00019178,2]
[351943270,1738854654123,-500.0,0.00019178,2]
[351943272,1738854654133,-512.10111262,0.00019178,2]
[351943274,1738854654143,-500.0,0.00019178,2]
[351943276,1738854654155,-540.96,0.00019178,2]
[351943278,1738854654164,-500.0,0.00019178,2]
[351943280,1738854654175,-510.77549152,0.00019178,2]
[351943282,1738854654185,-500.0,0.00019178,2]
[351943284,1738854654194,-1713.53,0.00019178,2]
[351943286,1738854654203,-500.0,0.00019178,2]
[351943288,1738854654212,-1945.35,0.00019178,2]
[351943290,1738854654222,-587.1,0.00019178,2]
[351943292,1738854654233,-501.16342182,0.00019178,2]
[351943294,1738854654242,-500.0,0.00019178,2]
[351943296,1738854654251,-500.0,0.00019178,2]
[351943298,1738854654261,-500.0,0.00019178,2]
[351943300,1738854654271,-2508.49,0.00019178,2]
[351943302,1738854654280,-500.0,0.00019178,2]
[351943304,1738854654290,-500.0,0.00019178,2]
[351943306,1738854654299,-500.0,0.00019178,2]